Cogmind - Beta 10.2 @@@ ROGUE MODE // 2020.11.08 @ 03:31:18 // Halloween2020/ForbiddenLore Player: Salade Result: Destroyed by C-40 Crusher with Compactor Performance ------------- Evolutions (3) 1500 Regions Visited (7) 1400 Robots Destroyed (26) 130 Value Destroyed (770) 770 Prototype IDs (1) 20 Alien Tech Used (0) 0 Bonus (-142) -142 TOTAL SCORE: 3678 Bonus ------- High Alert Combat Kills 2 Friendly Fire -144 Cogmind --------- Core Integrity 0/700 Matter 281/300 Energy 100/100 System Corruption 11% Temperature Cool (0) Movement Core (50) Location -7/Waste Parts ------- > --- POWER (2) -------- (None) > --- PROPULSION (3) --- (None) > --- UTILITY (5) ------ (None) > --- WEAPON (3) ------- (None) > --- INVENTORY (4) ---- Particle Cannon Ion Cannon Assault Cannon Stasis Trap (100%) Peak State ------------ > --- POWER ------------ Light Ion Engine Light Nuclear Core > --- PROPULSION ------- Light Treads Advanced Treads Advanced Treads > --- UTILITY ---------- Improved Heat Sink Large Storage Unit Medium Insulated Plating Hardlight Generator Sensor Drone Bay > --- WEAPON ----------- Lightning Gun Gatling Laser Ion Cannon > --- INVENTORY -------- Fission Core Titanium Leg Improved Titanium Leg Medium Battery Weight Redist. System Improved EM Pulse Cannon Particle Cannon Ion Cannon Assault Cannon Stasis Trap [Rating: 43] Favorites ----------- Power Light Nuclear Core Engine Light Ion Engine Power Core Light Nuclear Core Propulsion Light Treads Treads Light Treads Leg Aluminum Leg Wheel Wheel Utility Sensor Drone Bay Device Sensor Drone Bay Storage Small Storage Unit Protection Medium Insulated Plating Weapon Assault Rifle Energy Gun Lightning Gun Energy Cannon Ion Cannon Ballistic Gun Assault Rifle Build | -11 -10 -10 -10 -9 -8 -7 -7 ------- Run | Scr Mat Min Exi Min Mat Fac Was Slots Evolved 6 | . . . . . 4 2 . Power 1 | . . . . . . 1 . Propulsion 1 | . . . . . 1 . . Utility 3 | . . . . . 2 1 . Weapon 1 | . . . . . 1 . . Parts Attached 41 | 8 4 2 2 5 10 9 1 Power 7 | 1 1 . 1 1 1 2 . Engine 3 | 1 . . . 1 . 1 . Core 4 | . 1 . 1 . 1 1 . Reactor . | . . . . . . . . Propulsion 7 | 4 . . . 1 2 . . Treads 4 | 2 . . . . 2 . . Leg 1 | . . . . 1 . . . Wheel 2 | 2 . . . . . . . Hover . | . . . . . . . . Flight . | . . . . . . . . Utility 11 | 1 1 . 1 1 3 4 . Device 4 | . . . . 1 1 2 . Storage 5 | 1 . . 1 . 2 1 . Processor . | . . . . . . . . Hackware . | . . . . . . . . Protection 2 | . 1 . . . . 1 . Artifact . | . . . . . . . . Weapon 16 | 2 2 2 . 2 4 3 1 Energy Gun 4 | 1 1 . . . . 2 . Energy Cannon 4 | . . . . 1 1 1 1 Ballistic Gun 8 | 1 1 2 . 1 3 . . Ballistic Cannon . | . . . . . . . . Launcher . | . . . . . . . . Special Weapon . | . . . . . . . . Impact Weapon . | . . . . . . . . Slashing Weapon . | . . . . . . . . Piercing Weapon . | . . . . . . . . Special Melee Weapon . | . . . . . . . . Unidentified Prototypes 1 | . . . . 1 . . . Parts Lost 11 | . 1 2 . 2 . . 6 Power 3 | . . . . 1 . . 2 Propulsion 3 | . . . . 1 . . 2 Utility 2 | . . 1 . . . . 1 Weapon 3 | . 1 1 . . . . 1 Highest Loss Streak 5 | . 1 1 . 2 . . 5 Average Slot Usage (%) 91 | . 98 84 86 98 94 96 51 Engine 3 | . 9 . . 1 1 7 4 Core 9 | . 4 14 14 12 7 7 4 Treads 25 | . 28 28 28 25 25 23 13 Device 7 | . . . . 13 13 14 9 Storage 15 | . 14 14 15 14 18 15 6 Protection 2 | . 12 . . . . 4 1 Energy Gun 5 | . 13 8 . . . 10 5 Energy Cannon 5 | . . . . 13 9 7 4 Ballistic Gun 14 | . 14 19 28 14 18 3 . Naked Turns 37 | . . . . . . . 37 Heaviest Build 66 | 11 17 17 20 33 57 66 66 Greatest Support 70 | 40 40 40 40 40 70 64 64 Greatest Overweight (x) 6 | 3 . . . 1 1 1 6 Average Overweight (x) . | . . . . . . . . Largest Inventory Capacity 14 | 6 6 6 10 10 14 14 10 Average Capacity 8 | 5 6 6 6 8 8 11 5 Most Carried 10 | 4 5 5 6 9 9 10 10 Average Carried 6 | 2 4 4 5 6 6 9 5 Final Capacity 14 | 6 6 6 10 8 14 10 4 Final Carried 10 | 4 5 5 6 5 9 10 4 Class Distribution -------------------- 58% | Mutant 24% | Gunner 16% | Tank Dominant Class ---------------- Mutant | -10/Materials Mutant | -10/Mines Mutant | -10/Exiles Mutant | -9/Mines Gunner | -8/Materials Tank | -7/Factory Mutant | -7/Waste Resources | -11 -10 -10 -10 -9 -8 -7 -7 ----------- Run | Scr Mat Min Exi Min Mat Fac Was Matter Collected 814 | 193 129 98 17 71 94 212 . Remotely . | . . . . . . . . Salvage Created 770 | . 186 114 . 74 134 262 . Parts 57 | . 12 15 . 6 8 16 . Haulers Intercepted . | . . . . . . . . Recyclers Shooed . | . . . . . . . . Parts Field Recycled . | . . . . . . . . Retrieved Matter . | . . . . . . . . Parts Self-Destructed . | . . . . . . . . Prevented . | . . . . . . . . Kills | -11 -10 -10 -10 -9 -8 -7 -7 ------- Run | Scr Mat Min Exi Min Mat Fac Was Combat Hostiles Destroyed 23 | . 4 6 . 2 6 5 . Guns 18 | . 4 6 . 1 3 4 . Cannons 5 | . . . . 1 3 1 . Classes Destroyed 8 | . 2 2 . . 1 3 . Builder 1 | . . . . . . 1 . Tunneler 1 | . . 1 . . . . . Drone 1 | . . . . . 1 . . Watcher 1 | . 1 . . . . . . Swarmer 11 | . . 6 . . 5 . . Grunt 10 | . 4 . . 2 1 3 . Sentry 1 | . . . . . . 1 . Programmer 1 | . . . . . . 1 . Best Kill Streak 4 | . 3 4 . 2 3 4 . Combat Bots Only 3 | . 2 3 . 2 3 3 . Max Kills in Single Turn 1 | . 1 1 . 1 1 1 . Gunslinging . | . . . . . . . . Exploded . | . . . . . . . . Melee . | . . . . . . . . Uniques/NPCs Destroyed . | . . . . . . . . Combat | -11 -10 -10 -10 -9 -8 -7 -7 -------- Run | Scr Mat Min Exi Min Mat Fac Was Damage Taken 2167 | . 233 289 . 220 367 242 816 Core 842 | . 11 32 . 22 64 13 700 Absorbed by Shields 48 | . . . . . . 36 12 Core Remaining (%) 87 | 100 . . . 74 88 . . Volleys Fired 66 | . 18 11 . 7 17 13 . Largest 3 | . 2 2 . 2 3 3 . Hottest 195 | . 85 85 . 88 113 195 . Shots Fired 156 | . 36 22 . 14 51 33 . Gun 122 | . 36 22 . 7 34 23 . Cannon 34 | . . . . 7 17 10 . Launcher . | . . . . . . . . Special . | . . . . . . . . Kinetic 82 | . 22 16 . 7 34 3 . Thermal 64 | . 14 6 . 7 17 20 . Explosive . | . . . . . . . . Electromagnetic 10 | . . . . . . 10 . Robot Hit Streak 24 | . 5 2 . 9 10 24 . Robot Miss Streak 3 | . 3 3 . 2 2 1 . Penetration Max . | . . . . . . . . Secondary Targets 1 | . . 1 . . . . . Max Gunslinging Chain 1 | . . 1 . . . . . Shots Hit Robots 99 | . 20 10 . 10 30 29 . Core Hits 45 | . 9 8 . 4 9 15 . Critical Hits . | . . . . . . . . Critical Kills . | . . . . . . . . Critical Parts Destroyed . | . . . . . . . . Melee Attacks . | . . . . . . . . Impact . | . . . . . . . . Slashing . | . . . . . . . . Piercing . | . . . . . . . . Sneak Attacks . | . . . . . . . . Combat Hostiles . | . . . . . . . . Follow-up Attacks . | . . . . . . . . Damage Inflicted 1536 | . 237 117 . 197 393 592 . Guns 1017 | . 237 117 . 65 206 392 . Cannons 464 | . . . . 123 174 167 . Explosions . | . . . . . . . . Melee . | . . . . . . . . Ramming 55 | . . . . 9 13 33 . Kinetic 532 | . 143 86 . 65 206 32 . Thermal 803 | . 94 31 . 123 174 381 . Explosive . | . . . . . . . . Electromagnetic 146 | . . . . . . 146 . Impact . | . . . . . . . . Slashing . | . . . . . . . . Piercing . | . . . . . . . . Highest Corruption 11 | . . . . . 1 . 11 Average Corruption 2 | . . . . . 1 . 5 Corruption Purged . | . . . . . . . . Effects 6 | . . . . . 2 . 4 Message Errors 1 | . . . . . . . 1 Matter Fused 2 | . . . . . . . 2 Energy Discharges 2 | . . . . . 1 . 1 Data Loss (minor) 1 | . . . . . 1 . . Overload Shots . | . . . . . . . . Overflow Damage 22 | . . . . 17 5 . . Projectiles 22 | . . . . 17 5 . . Explosions . | . . . . . . . . Melee . | . . . . . . . . Knockbacks 1 | . . . . . . 1 . Impact 1 | . . . . . . 1 . Kinetic . | . . . . . . . . Secondary . | . . . . . . . . Self-Inflicted Damage . | . . . . . . . . Shots . | . . . . . . . . Rammed 4 | . . . . 1 1 2 . Targets Rammed 5 | . . . . 1 1 3 . Kicked . | . . . . . . . . Crushed 1 | . . . . . . 1 . Highest Temperature 349 | . 129 150 . 233 206 349 . Average Temperature 92 | . 54 52 . 137 77 145 . Received Heat Transfer 402 | . 126 . . 126 36 114 . Effects 4 | . . . . . . 4 . Shutdowns 1 | . . . . . . 1 . Interference 3 | . . . . . . 3 . Siege Activations . | . . . . . . . . Robots Corrupted . | . . . . . . . . Combat Hostiles . | . . . . . . . . Parts Fried . | . . . . . . . . Impact Corruptions 1 | . . . . . . 1 . Robots Melted . | . . . . . . . . Combat Hostiles . | . . . . . . . . Parts Melted . | . . . . . . . . Heat Transferred 1564 | . 259 74 . 201 296 734 . Parts Sabotaged . | . . . . . . . . Parts Stolen . | . . . . . . . . Parts Stripped . | . . . . . . . . Power Chain Reactions . | . . . . . . . . Missiles Intercepted . | . . . . . . . . Alert | -11 -10 -10 -10 -9 -8 -7 -7 ------- Run | Scr Mat Min Exi Min Mat Fac Was Peak Influence 403 | . 172 206 . 55 403 155 36 Initial 100 | . . 66 . . 21 100 36 Average 103 | . 70 161 . 6 247 84 18 Maximum Alert Level 2 | . . 1 . . 2 . . Low Security (%) 81 | 100 100 67 . 100 17 100 100 Level 1 18 | . . 32 . . 82 . . Level 2 . | . . . . . . . . Level 3 . | . . . . . . . . Level 4 . | . . . . . . . . Level 5 . | . . . . . . . . High Security . | . . . . . . . . Max Security . | . . . . . . . . Squads Dispatched 6 | . 2 . . . 2 2 . Investigation . | . . . . . . . . Extermination 1 | . . . . . . 1 . Reinforcement 4 | . 2 . . . 1 1 . Assault 1 | . . . . . 1 . . Garrison . | . . . . . . . . Intercept . | . . . . . . . . Construction Impeded 1 | . . . . . . 1 . Haulers Reinforced . | . . . . . . . . Stealth | -11 -10 -10 -10 -9 -8 -7 -7 --------- Run | Scr Mat Min Exi Min Mat Fac Was Distress Signals 3 | . 1 . . . 2 . . Communications Jammed . | . . . . . . . . Distress Signals . | . . . . . . . . Times Spotted 50 | . 16 6 . 3 15 6 4 Peak Tracking Total 6 | . 4 3 . 3 6 3 4 Tactical Retreats 5 | . 1 . . 1 3 . . Traps | -11 -10 -10 -10 -9 -8 -7 -7 ------- Run | Scr Mat Min Exi Min Mat Fac Was Traps Triggered 2 | . . . . . 1 1 . Indirectly . | . . . . . . . . Trap Hack Attempts . | . . . . . . . . Triggered . | . . . . . . . . Disarmed . | . . . . . . . . Reprogrammed . | . . . . . . . . Reused 1 | . . . . 1 . . . Traps Extracted . | . . . . . . . . Installed 1 | . . . . 1 . . . Triggered 1 | . . . . 1 . . . Exploded 1 | . . . . . . . 1 Machines | -11 -10 -10 -10 -9 -8 -7 -7 ---------- Run | Scr Mat Min Exi Min Mat Fac Was Machines Disabled 1 | . . . . . 1 . . Max in Single Turn 1 | . . . . . 1 . . Garrison Access 1 | . . . . . 1 . . Machines Sabotaged . | . . . . . . . . Garrisons Compromised . | . . . . . . . . Overloaded Fab Kills . | . . . . . . . . Fab Network Shutdowns . | . . . . . . . . Hacking | -11 -10 -10 -10 -9 -8 -7 -7 --------- Run | Scr Mat Min Exi Min Mat Fac Was Machines Accessed 4 | . . . 1 1 . 2 . Terminals 2 | . . . . . . 2 . Fabricators . | . . . . . . . . Repair Stations . | . . . . . . . . Recycling Units . | . . . . . . . . Scanalyzers . | . . . . . . . . Garrison Access . | . . . . . . . . Total Hacks 11 | . . . 8 1 . 2 . Successful 10 | . . . 8 1 . 1 . Failed 1 | . . . . . . 1 . Catastrophic . | . . . . . . . . Database Lockouts . | . . . . . . . . Manual . | . . . . . . . . Terminals 2 | . . . . . . 2 . Fabricators . | . . . . . . . . Repair Stations . | . . . . . . . . Recycling Units . | . . . . . . . . Scanalyzers . | . . . . . . . . Garrison Access . | . . . . . . . . Terminal Hacks 10 | . . . 8 1 . 1 . Record 8 | . . . 8 . . . . Open Door 1 | . . . . 1 . . . Locate Traps 1 | . . . . . . 1 . Fabricator Hacks . | . . . . . . . . Repair Station Hacks . | . . . . . . . . Recycling Unit Hacks . | . . . . . . . . Scanalyzer . | . . . . . . . . Garrison Access Hacks . | . . . . . . . . Unauthorized Hacks . | . . . . . . . . Terminals . | . . . . . . . . Fabricators . | . . . . . . . . Repair Stations . | . . . . . . . . Recycling Units . | . . . . . . . . Scanalyzers . | . . . . . . . . Garrison Access . | . . . . . . . . Data Cores Recovered . | . . . . . . . . Used . | . . . . . . . . Hacking Detections 2 | . . . . . . 2 . Full Trace Events . | . . . . . . . . Feedback Events . | . . . . . . . . Feedback Blocked . | . . . . . . . . Robot Schematics Acquired . | . . . . . . . . Robots Built . | . . . . . . . . Matter . | . . . . . . . . Time . | . . . . . . . . Total Robot Build Rating . | . . . . . . . . Part Schematics Acquired . | . . . . . . . . Parts Built . | . . . . . . . . Matter . | . . . . . . . . Time . | . . . . . . . . Total Part Build Rating . | . . . . . . . . Parts Repaired . | . . . . . . . . Time . | . . . . . . . . Parts Recycled . | . . . . . . . . Recycled Matter . | . . . . . . . . Retrieved Matter . | . . . . . . . . Retrieved Components . | . . . . . . . . Parts Scanalyzed . | . . . . . . . . Part Schematics Acquired . | . . . . . . . . Parts Damaged . | . . . . . . . . Bothacking | -11 -10 -10 -10 -9 -8 -7 -7 ------------ Run | Scr Mat Min Exi Min Mat Fac Was Used RIF Installer . | . . . . . . . . Robots Hacked . | . . . . . . . . Non-combat . | . . . . . . . . Combat . | . . . . . . . . Robot Hacks Applied . | . . . . . . . . Relay Couplers Released . | . . . . . . . . Robots Rewired . | . . . . . . . . Allies Hacked . | . . . . . . . . Hacks Repelled . | . . . . . . . . Allies | -11 -10 -10 -10 -9 -8 -7 -7 -------- Run | Scr Mat Min Exi Min Mat Fac Was Total Allies . | . . . . . . . . Largest Group . | . . . . . . . . Highest-Rated Group . | . . . . . . . . Highest-Rated Ally . | . . . . . . . . Total Orders . | . . . . . . . . Ally Attacks . | . . . . . . . . Total Damage . | . . . . . . . . Kills . | . . . . . . . . Allies Corrupted . | . . . . . . . . Allies Melted . | . . . . . . . . Intel | -11 -10 -10 -10 -9 -8 -7 -7 ------- Run | Scr Mat Min Exi Min Mat Fac Was Robot Analysis Total . | . . . . . . . . Derelict Logs Recovered 1 | . . . . 1 . . . Drone Launches 13 | . . . . 2 7 4 . Drone Recoveries 10 | . . . . 2 6 2 . Exploration | -11 -10 -10 -10 -9 -8 -7 -7 ------------- Run | Scr Mat Min Exi Min Mat Fac Was Turns Passed 2970 | 64 360 247 631 362 439 746 121 Spaces Moved 1655 | 40 187 133 392 189 243 417 54 Core 8 | 2 . . . . . . 6 Treads 1626 | 17 187 133 392 189 243 417 48 Legs . | . . . . . . . . Wheels 21 | 21 . . . . . . . Hover . | . . . . . . . . Flight . | . . . . . . . . Fastest Speed 50 | 50 160 160 160 160 150 150 50 Average Speed 158 | 121 160 160 160 162 151 160 150 Slowest Speed 350 | 200 160 160 160 180 180 170 350 Overloaded Moves . | . . . . . . . . Propulsion Burnouts . | . . . . . . . . Robots Hopped . | . . . . . . . . Cave-ins Triggered . | . . . . . . . . Exploration Rate (%) 31 | 3 37 32 78 38 25 6 32 Regions Visited 7 Branch Regions 3 Pre-discovered Areas 1 | . . . 1 . . . . Known Exits Taken 1 | . . . . . 1 . . Unknown Exits Taken 5 | 1 1 1 1 1 . . . Scrap Searched 1 | . . . . 1 . . . Spaces Dug . | . . . . . . . . Terrain Destroyed 2 | . . . . . 2 . . Melee . | . . . . . . . . Projectile 2 | . . . . . 2 . . AOE . | . . . . . . . . Terrain Rammed . | . . . . . . . . Walls Destroyed . | . . . . . . . . Machines Disabled . | . . . . . . . . Actions | -11 -10 -10 -10 -9 -8 -7 -7 --------- Run | Scr Mat Min Exi Min Mat Fac Was Total 1875 | 53 211 147 395 231 279 465 94 Wait 69 | . . . . 20 . 10 39 Move 1649 | 39 186 132 391 188 242 417 54 Hop . | . . . . . . . . Pick Up 16 | 4 1 1 1 4 2 3 . Fast Attach 29 | 8 3 1 2 . 8 6 1 Attach 9 | . 1 1 . 4 2 1 . Detach 10 | . 1 . . 1 5 3 . Swap 3 | . . . . 1 . 2 . Drop 16 | 2 1 1 1 2 2 7 . Fire 66 | . 18 11 . 7 17 13 . Melee . | . . . . . . . . Ram . | . . . . . . . . Kick . | . . . . . . . . Crush 5 | . . . . 1 1 3 . Escape Stasis 2 | . . . . 2 . . . Rewire . | . . . . . . . . Trap 1 | . . . . 1 . . . Miscellaneous . | . . . . . . . . Route ------- -11/Scrapyard -10/Materials -10/Mines -10/Exiles -9/Mines -8/Materials (discovered 2 exits: *Fac x2) -7/Factory -7/Waste History --------- Turn | Location | Event 18 | -11/Scrapyard | Discovered new exit (range 15) 65 | -11/Scrapyard | Entered Materials 331 | -10/Materials | Build established: Mutant 410 | -10/Materials | Discovered new exit (range 8) 425 | -10/Materials | Entered Mines 666 | -10/Mines | Deemed a non-threat by the Exiles lab entrance 666 | -10/Mines | Discovered new exit (range 5) 672 | -10/Mines | Entered Exiles 722 | -10/Exiles | Met 8R-AWN 751 | -10/Exiles | Met EX-HEX 835 | -10/Exiles | Met EX-DEC 847 | -10/Exiles | Learned location of Zion (-6) 940 | -10/Exiles | Visited The Gauntlet 1288 | -10/Exiles | Discovered new exit (range 10) 1303 | -10/Exiles | Entered Mines 1308 | -9/Mines | Found the Drone Emporium 1320 | -9/Mines | Found Prototype Device 1322 | -9/Mines | Identified Sensor Drone Bay 1357 | -9/Mines | Met a Derelict bent on vengeance 1578 | -9/Mines | Learned location of 1 exit from Materials 1579 | -9/Mines | Discovered new exit (range 13) 1589 | -9/Mines | Found a hidden stash of uninstalled traps 1665 | -9/Mines | Entered Materials 1665 | -8/Materials | Evolved 4 slots: Propulsion x1, Utility x2, Weapon x1 1666 | -8/Materials | Identified exit to Factory 1966 | -8/Materials | Build established: Gunner 2023 | -8/Materials | Discovered exit to Factory (range 16) 2104 | -8/Materials | Entered Factory 2104 | -7/Factory | Evolved 2 slots: Power x1, Utility x1 2716 | -7/Factory | Build established: Tank 2850 | -7/Factory | Sucked down chute 2850 | -7/Factory | Entered Waste 2864 | -7/Waste | Spotted C-40 Crusher 2864 | -7/Waste | Spotted C-40 Crusher 2865 | -7/Waste | EMP discharged 2866 | -7/Waste | Spotted C-40 Crusher 2869 | -7/Waste | Spotted C-40 Crusher 2874 | -7/Waste | Crushed by Compactor (1 part destroyed, 2 dropped) 2925 | -7/Waste | Crushed by Compactor (1 part destroyed, 2 dropped) 2928 | -7/Waste | Crushed by Compactor (1 part destroyed, 1 dropped) 2931 | -7/Waste | Crushed by Compactor (1 part destroyed, 1 dropped) 2934 | -7/Waste | Crushed by Compactor (1 part destroyed, 2 dropped) 2952 | -7/Waste | Core integrity fell below 50% 2965 | -7/Waste | EMP discharged 2965 | -7/Waste | Lost 5 parts (2p2n1w) 2965 | -7/Waste | System corruption reached 10% 2968 | -7/Waste | Core integrity fell below 20% 2971 | -7/Waste | Destroyed by C-40 Crusher with Compactor Last Messages --------------- 02895_ System corrupted: Matter fused (-7). 02925_ Adv. Treads crushed. 02925_ Gatling Laser crushed. 02925_ Adv. Treads crushed. 02927_ :EPPZFCYBTI84/4QP 1O&NY3QJ 02928_ Lgt. Treads crushed. 02928_ Sensor Drone Bay crushed. 02931_ Adv. Treads crushed. 02931_ Lgt. Ion Engine crushed. 02931_ Ion Cannon crushed. 02931_ Lgt. Nuclear Core destroyed. 02932_ Acquired Ion Cannon. 02934_ Ion Cannon crushed. 02934_ Hardlight Generator crushed. 02934_ Med. Battery crushed. 02939_ Gatling Laser crushed. 02939_ Hardlight Generator crushed. 02955_ ALERT: Foreign system detected. Charging EMP. 02964_ System corrupted: Energy discharge (-24). 02965_ System corrupted (+6). Map ----- +----------------------------------------------------+ | ?????????????????????????????????????????????????? | | ?????????????????????????????????????????????????? | | ?????????????????????????????????????????????????? | | ?????????????????????????????????????????????????? | | ?????????????????????????????????????????????????? | | ?????????????????????????????????????????????????? | | ?????????????????????????????????????????????????? | | ?????????????????????????????????????????????????? | | ?????????????????????????????????????????????????? | | ?????????????????????????????????????????????????? | | ?????????????????????????????????????????????????? | | ?????????????????????????????????????????????????? | | ?????????????????????????????????????????????????? | | ?????????????????????????????????????????????????? | | ?????????????????????????????????????????????????? | | ?????????????????????????????????????????????????? | | ?????????????????????????????????????????????????? | | ??????????????????##########?????????????????????? | | ??????????????????# #?????????????????????? | | ??????????????????# #?????????????????????? | | ??????????????????# #?????????????????????? | | ??????????????????# CC #?????????????????????? | | ??????????????????# CC #?????????????????????? | | ??????????????????# CCCC#?????????????????????? | | ??????????????????# CCCC#?????????????????????? | | ??????????????????# CC@ #?????????????????????? | | ??????????????????### CC###?????????????????????? | | ????????????????????# #???????????????????????? | | ????????????????????# #???????????????????????? | | ????????????????????# #????????? ????????????? | | ??????????????????### ######## #???????????? | | ??????????????????# #???????????? | | ??????????????????# #???????????? | | ??????????????????# #???????????? | | ??????????????????# #???????????? | | ??????????????????#;;" ######## #???????????? | | ??????############# #????????? ?????????????? | | ??????# ### #???????????????????????? | | ??????# #?## #???????????????????????? | | ??????# #### #???????????????????????? | | ??????# #???????????????????????? | | ??????# [ #???????????????????????? | | ??????# #???????????????????????? | | ??????# #???????????????????????? | | ??????# #### #???????????????????????? | | ??????# #??# #???????????????????????? | | ??????# #??# #???????????????????????? | | ??????############??# #???????????????????????? | | ????????????????????# #???????????????????????? | | ???????????????????? ???????????????????????? | +----------------------------------------------------+ Best States ------------- Heat Dissipation 48 Energy Generation 19 Energy Capacity 385 Matter Stores 300 Matter Capacity 300 Sight Range 16 Terrain Scan Density 10 Additional Mass Support 6 Armor Coverage 225 Resistance: EM 20 Evasion (%) 42 Recoil Reduction 3 Item Schematics ----------------- None Robot Schematics ------------------ None Fabricated ------------ Nothing Alien Tech Used ----------------- None Achievements -------------- None Challenges ------------ None Game ------ Seed ImprinterCombatBoomstick Manual? 0 Play Time 00:37:24 Cumulative 14.7 hours Start 2020.11.08 @ 02:54:43 End 2020.11.08 @ 03:31:18 Sessions 1 Manual Loads 0 Difficulty Rogue Special Mode Halloween2020/ForbiddenLore Game No. 24 Rogue 24 Adventurer 0 Explorer 0 Win Type - Total 0 Types 0/0/0/0/0/0/0/0/0 Lore% 9 Gallery% 24 Achievement% 14 Wizard Run 0 Options --------- ASCII 1 Keyboard 0 Movement Mouse Keybinds 0 Fullscreen 2 Font 18/SmallcapsGlow Map View 76x50 Tactical HUD 1 Map Filters NONE Filters NONE Steam 1 RUN: 65cd4856-0603-458d-80ef-46fca4d448b2